[Event "ISR Youth-Ch Finals 2021 U16"]
[Site "Ramat Hasharon"]
[Date "2021.03.22"]
[Round "4.13"]
[White "Levin, Guy"]
[Black "Rozen, Eytan"]
[Result "1-0"]
[ECO "A30"]
[WhiteElo "2355"]
[BlackElo "2399"]
[Annotator "RC"]
[PlyCount "167"]
[EventDate "2021.03.19"]
[EventType "swiss"]
[EventCountry "ISR"]
[SourceTitle "playchess.com"]
[Source "ChessBase"]
[SourceQuality "1"]
[TimeControl "5400+30"]

1. c4 {[%emt 0:00:00]} Nf6 {[%emt 1:30:30]} 2. Nf3 {[%emt 0:00:07]} g6 {[%emt 0:00:00]} 3. g3 {[%emt 0:00:10]} Bg7 {[%emt 0:00:00]} 4. Bg2 {[%emt 0:00:04]} O-O {[%emt 0:00:00]} 5. O-O {[%emt 0:00:14]} b6 {[%emt 0:00:00]} 6. Nc3 {[%emt 0:01:14]} Bb7 {[%emt 0:00:00]} 7. Re1 {[%emt 0:00:09]} c5 {[%emt 0:00:00]} 8. e4 {[%emt 0:00:59]} Nc6 {[%emt 0:00:00]} 9. d3 {[%emt 0:02:15]} e6 {[%emt 0:00:00]} 10. Bf4 {[%emt 0:17:57]} d5 {[%emt 0:00:00]} 11. e5 {[%emt 0:11:50]} Ne8 {[%emt 0:00:00]} 12. cxd5 {[%emt 0:00:46]} exd5 {[%emt 0:00:00]} 13. d4 {[%emt 0:03:57]} Nc7 {[%emt 0:00:00]} 14. Qd2 {[%emt 0:01:44]} Qd7 {[%emt 0:00:00]} 15. Rad1 {[%emt 0:01:30]} cxd4 {[%emt 0:00:00]} 16. Ne2 {[%emt 0:04:30]} Ne6 {[%emt 0:00:00]} 17. Nexd4 {[%emt 0:02:31]} Ncxd4 {[%emt 0:00:00]} 18. Nxd4 {[%emt 0:00:03]} Nxf4 {[%emt 0:00:00]} 19. gxf4 {[%emt 0:07:11]} Rfe8 {[%emt 0:00:00]} 20. Qe3 {[%emt 0:02:06]} Re7 {[%emt 0:00:00]} 21. Qg3 {[%emt 0:06:01]} Rae8 {[%emt 0:00:00]} 22. h4 {[%emt 0:08:14]} Bc8 {[%emt 0:00:00]} 23. Ne2 {[%emt 0:04:52]} Bb7 {[%emt 0:00:00]} 24. Bxd5 {[%emt 0:00:39]} Bxd5 {[%emt 0:00:00]} 25. Nc3 {[%emt 0:00:02]} Qe6 {[%emt 0:00:00]} 26. Nxd5 {[%emt 0:06:21]} Rd7 {[%emt 0:00:00]} 27. Nc3 {[%emt 0:00:55]} Rxd1 {[%emt 0:00:00]} 28. Rxd1 {[%emt 0:00:15]} f6 {[%emt 0:00:00]} 29. Nd5 {[%emt 0:02:01]} Qf7 {[%emt 0:00:00]} 30. exf6 {[%emt 0:05:02]} Bxf6 {[%emt 0:00:00]} 31. Nxf6+ {[%emt 0:01:23]} Qxf6 {[%emt 0:00:00]} 32. h5 {[%emt 0:00:02]} Kg7 {[%emt 0:06:45]} 33. Rd7+ {[%emt 0:01:38]} Re7 {[%emt 0:00:01]} 34. h6+ {[%emt 0:00:15]} Kf7 {[%emt 0:01:18]} 35. Qb3+ {[%emt 0:01:52]} Ke8 {[%emt 0:02:19]} 36. Rxe7+ {[%emt 0:01:32]} Kxe7 {[%emt 0:00:26]} 37. Qa3+ {[%emt 0:00:21]} Kd8 {[%emt 0:02:44]} 38. Qxa7 {[%emt 0:00:39]} Qe6 {[%emt 0:00:37]} 39. Kh2 {[%emt 0:01:34]} Qd6 {[%emt 0:00:47]} 40. Qf7 {[%emt 0:00:15]} Qc5 {[%emt 0:01:11]} 41. Qg8+ {[%emt 0:00:13]} Kc7 {[%emt 0:00:05]} 42. Qxh7+ {[%emt 0:00:05]} Kb8 {[%emt 0:00:09]} 43. Qh8+ {[%emt 0:00:28]} Ka7 {[%emt 0:00:03]} 44. Kg3 {[%emt 0:00:07]} Qc1 {[%emt 0:00:15]} 45. Qg7+ {[%emt 0:04:45]} Ka6 {[%emt 0:00:02]} 46. h7 {[%emt 0:00:26]} Qg1+ {[%emt 0:00:05]} 47. Kf3 {[%emt 0:00:22]} Qd1+ {[%emt 0:00:11]} 48. Ke4 {[%emt 0:00:20]} Qc2+ {[%emt 0:01:46]} 49. Ke3 {[%emt 0:02:04]} Qc1+ {[%emt 0:00:38]} 50. Kd3 {[%emt 0:00:01]} Qd1+ {[%emt 0:00:39]} 51. Kc4 {[%emt 0:00:46]} Qe2+ {[%emt 0:01:10]} 52. Kd5 {[%emt 0:00:11]} Qb5+ {[%emt 0:00:54]} 53. Ke6 {[%emt 0:00:25]} Qf5+ {[%emt 0:00:06]} 54. Ke7 {[%emt 0:00:07]} Qe4+ {[%emt 0:00:09]} 55. Kf7 {[%emt 0:00:50]} Qd5+ {[%emt 0:00:53]} 56. Kxg6 {[%emt 0:00:27]} Qe4+ {[%emt 0:00:53]} 57. f5 {[%emt 0:00:26]} Qg4+ {[%emt 0:00:04]} 58. Kf6 {[%emt 0:00:19]} Qd4+ {[%emt 0:00:05]} 59. Kf7 {[%emt 0:00:15]} Qd5+ {[%emt 0:01:21]} 60. Kg6 {[%emt 0:00:44]} Qg2+ {[%emt 0:00:23]} 61. Kf6 {[%emt 0:00:04]} Qc6+ {[%emt 0:00:06]} 62. Ke5 {[%emt 0:00:32]} Qc5+ {[%emt 0:00:02]} 63. Ke4 {[%emt 0:00:45]} Qc2+ {[%emt 0:00:12]} 64. Kf3 {[%emt 0:00:39]} Qxf5+ {[%emt 0:00:32]} 65. Kg3 {[%emt 0:00:02]} Qd3+ {[%emt 0:00:03]} 66. f3 {[%emt 0:00:28]} Qd6+ {[%emt 0:00:04]} 67. f4 {[%emt 0:00:51]} Qd3+ {[%emt 0:00:05]} 68. Kh4 {[%emt 0:00:11]} Qe4 {[%emt 0:00:04]} 69. h8=Q {[%emt 0:01:06]} Qxf4+ {[%emt 0:00:08]} 70. Kh5 {[%emt 0:00:17]} Qh2+ {[%emt 0:00:29]} 71. Kg6 {[%emt 0:00:10]} Qg2+ {[%emt 0:00:12]} 72. Kh7 {[%emt 0:00:16]} Qe4+ {[%emt 0:00:34]} 73. Qg6 {[%emt 0:00:17]} Qh4+ {[%emt 0:00:02]} 74. Kg7 {[%emt 0:01:24]} Qe7+ {[%emt 0:00:04]} 75. Qf7 {[%emt 0:00:16]} Qg5+ {[%emt 0:00:10]} 76. Kf8 {[%emt 0:00:38]} Qc5+ {[%emt 0:00:13]} 77. Qe7 {[%emt 0:00:26]} Qc8+ {[%emt 0:00:29]} 78. Qe8 {[%emt 0:00:21]} Qf5+ {[%emt 0:00:11]} 79. Ke7 {[%emt 0:00:21]} Qc5+ {[%emt 0:00:22]} 80. Kd8 {[%emt 0:00:12]} Qg5+ {[%emt 0:00:39]} 81. Qe7 {[%emt 0:00:30]} Qd5+ {[%emt 0:00:04]} 82. Qd7 {[%emt 0:00:22]} Qg5+ {[%emt 0:00:03]} 83. Kc8 {[%emt 0:00:24]} Qc5+ {[%emt 0:00:19]} 84. Kb8 {[%emt 0:00:11]} 1-0

[Event "ISR Youth-Ch Finals 2021 U16"]
[Site "Ramat Hasharon"]
[Date "2021.03.23"]
[Round "5.12"]
[White "Aizenberg, Benny"]
[Black "Levin, Guy"]
[Result "0-1"]
[ECO "B32"]
[WhiteElo "2307"]
[BlackElo "2355"]
[Annotator "ChessBase"]
[PlyCount "100"]
[EventDate "2021.03.19"]
[EventType "swiss"]
[EventCountry "ISR"]
[SourceTitle "playchess.com"]
[Source "ChessBase"]
[SourceQuality "1"]
[TimeControl "5400+30"]

1. e4 {[%emt 0:00:00]} c5 {[%emt 0:00:00]} 2. Nf3 {[%emt 0:00:00]} Nc6 {[%emt 0:00:00]} 3. d4 {[%emt 0:00:00]} cxd4 {[%emt 0:00:00]} 4. Nxd4 {[%emt 0:00:00]} e5 {[%emt 0:00:00]} 5. Nb5 {[%emt 0:00:00]} d6 {[%emt 0:00:00]} 6. N1c3 {[%emt 0:00:00]} a6 {[%emt 0:00:00]} 7. Na3 {[%emt 0:00:00]} Be6 {[%emt 0:00:04]} 8. Nd5 {[%emt 0:03:50]} Nf6 {[%emt 0:00:19]} 9. Nxf6+ {[%emt 0:01:15]} gxf6 {[%emt 0:00:47]} 10. Bc4 {[%emt 0:04:16]} Qc7 {[%emt 0:01:34]} 11. O-O {[%emt 0:10:32]} O-O-O {[%emt 0:01:06]} 12. Bd5 {[%emt 0:08:10]} h5 {[%emt 0:09:47]} 13. b4 {[%emt 0:09:46]} Nxb4 {[%emt 0:10:54]} 14. c4 {[%emt 0:08:04]} Nc6 {[%emt 0:03:36]} 15. Be3 {[%emt 0:04:44]} Bh6 {[%emt 0:00:20]} 16. Nb5 {[%emt 0:02:24]} Qa5 {[%emt 0:13:48]} 17. Na7+ {[%emt 0:10:44]} Kc7 {[%emt 0:00:27]} 18. Rb1 {[%emt 0:04:32]} Bxd5 {[%emt 0:02:28]} 19. cxd5 {[%emt 0:04:57]} Nxa7 {[%emt 0:03:30]} 20. Bb6+ {[%emt 0:05:26]} Qxb6 {[%emt 0:00:07]} 21. Rxb6 {[%emt 0:00:08]} Kxb6 {[%emt 0:00:13]} 22. Qb3+ {[%emt 0:00:15]} Kc7 {[%emt 0:01:43]} 23. Rb1 {[%emt 0:05:04]} b5 {[%emt 0:00:07]} 24. a4 {[%emt 0:00:40]} Rb8 {[%emt 0:08:42]} 25. Qc3+ {[%emt 0:02:00]} Kd7 {[%emt 0:00:20]} 26. Qa5 {[%emt 0:02:21]} bxa4 {[%emt 0:00:29]} 27. Rxb8 {[%emt 0:01:43]} Rxb8 {[%emt 0:00:03]} 28. g3 {[%emt 0:00:02]} Nb5 {[%emt 0:01:39]} 29. Qxa4 {[%emt 0:00:10]} Ra8 {[%emt 0:01:17]} 30. Qd1 {[%emt 0:02:42]} Ke7 {[%emt 0:00:49]} 31. f4 {[%emt 0:02:39]} exf4 {[%emt 0:03:57]} 32. Qxh5 {[%emt 0:01:04]} Bg5 {[%emt 0:01:16]} 33. h4 {[%emt 0:02:42]} Rg8 {[%emt 0:00:06]} 34. hxg5 {[%emt 0:00:57]} Rxg5 {[%emt 0:00:03]} 35. Qe2 {[%emt 0:02:33]} Rxg3+ {[%emt 0:02:51]} 36. Kf2 {[%emt 0:01:38]} Nc3 {[%emt 0:00:17]} 37. Qxa6 {[%emt 0:00:47]} Nxe4+ {[%emt 0:00:05]} 38. Ke2 {[%emt 0:01:36]} f5 {[%emt 0:00:44]} 39. Qa7+ {[%emt 0:00:41]} Kf8 {[%emt 0:01:06]} 40. Qa8+ {[%emt 0:01:01]} Kg7 {[%emt 0:00:50]} 41. Qa1+ {[%emt 0:00:32]} Kg6 {[%emt 0:00:02]} 42. Qh8 {[%emt 0:00:32]} f3+ {[%emt 0:00:25]} 43. Kf1 {[%emt 0:00:04]} f2 {[%emt 0:00:45]} 44. Qg8+ {[%emt 0:00:03]} Kh6 {[%emt 0:00:21]} 45. Qf8+ {[%emt 0:01:08]} Kg5 {[%emt 0:00:07]} 46. Qg7+ {[%emt 0:00:31]} Kf4 {[%emt 0:00:10]} 47. Qh6+ {[%emt 0:00:04]} Ke5 {[%emt 0:00:23]} 48. Qh8+ {[%emt 0:00:11]} f6 {[%emt 0:00:13]} 49. Ke2 {[%emt 0:01:27]} Rg1 {[%emt 0:00:21]} 50. Ke3 {[%emt 0:00:29]} Re1+ {[%emt 0:00:13]} 0-1

[Event "ISR Youth-Ch Finals 2021 U16"]
[Site "Ramat Hasharon"]
[Date "2021.03.23"]
[Round "5.16"]
[White "Hoffmann, Yair"]
[Black "Gleizer, Adar"]
[Result "1-0"]
[ECO "D71"]
[WhiteElo "2352"]
[BlackElo "1833"]
[Annotator "ChessBase"]
[PlyCount "77"]
[EventDate "2021.03.19"]
[EventType "swiss"]
[EventCountry "ISR"]
[SourceTitle "playchess.com"]
[Source "ChessBase"]
[SourceQuality "1"]
[TimeControl "5400+30"]

1. c4 {[%emt 0:00:00]} Nf6 {[%emt 0:00:00]} 2. g3 {[%emt 0:00:00]} c6 {[%emt 0:01:00]} 3. d4 {[%emt 0:00:06]} g6 {[%emt 0:01:27]} 4. Bg2 {[%emt 0:00:08]} d5 {[%emt 0:00:08]} 5. Qa4 {[%emt 0:00:07]} Be6 {[%emt 0:04:07]} 6. cxd5 {[%emt 0:00:51]} Bxd5 {[%emt 0:00:24]} 7. Nf3 {[%emt 0:00:09]} Nbd7 {[%emt 0:01:33]} 8. O-O {[%emt 0:00:32]} Nb6 {[%emt 0:00:59]} 9. Qc2 {[%emt 0:01:05]} Be4 {[%emt 0:04:33]} 10. Qd1 {[%emt 0:00:07]} Bg7 {[%emt 0:00:37]} 11. Nc3 {[%emt 0:01:08]} O-O {[%emt 0:01:10]} 12. Nxe4 {[%emt 0:00:19]} Nxe4 {[%emt 0:00:12]} 13. Qc2 {[%emt 0:00:09]} Nd6 {[%emt 0:00:27]} 14. Rd1 {[%emt 0:00:38]} Qc8 {[%emt 0:03:03]} 15. e4 {[%emt 0:10:40]} Qe6 {[%emt 0:03:15]} 16. Re1 {[%emt 0:02:49]} h6 {[%emt 0:04:49]} 17. b3 {[%emt 0:02:28]} f5 {[%emt 0:14:24]} 18. exf5 {[%emt 0:09:37]} Qxf5 {[%emt 0:00:09]} 19. Qe2 {[%emt 0:00:26]} Nd5 {[%emt 0:01:52]} 20. Bb2 {[%emt 0:00:59]} Rae8 {[%emt 0:03:00]} 21. Ne5 {[%emt 0:00:52]} e6 {[%emt 0:09:08]} 22. Rf1 {[%emt 0:08:04]} Kh7 {[%emt 0:07:27]} 23. Rae1 {[%emt 0:00:26]} Bxe5 {[%emt 0:01:59]} 24. dxe5 {[%emt 0:00:19]} Nc8 {[%emt 0:00:52]} 25. Be4 {[%emt 0:01:32]} Qf7 {[%emt 0:00:38]} 26. Bc1 {[%emt 0:09:18]} Nce7 {[%emt 0:04:25]} 27. Qh5 {[%emt 0:00:40]} Qg7 {[%emt 0:00:22]} 28. Qh3 {[%emt 0:00:07]} Nf5 {[%emt 0:06:52]} 29. g4 {[%emt 0:00:22]} Nfe7 {[%emt 0:01:00]} 30. f4 {[%emt 0:00:16]} Rf7 {[%emt 0:03:09]} 31. Rf3 {[%emt 0:00:31]} Rg8 {[%emt 0:01:58]} 32. Kh1 {[%emt 0:01:08]} Qf8 {[%emt 0:02:02]} 33. Ref1 {[%emt 0:00:05]} Nc7 {[%emt 0:01:22]} 34. Ba3 {[%emt 0:01:11]} Ncd5 {[%emt 0:02:08]} 35. f5 {[%emt 0:01:49]} gxf5 {[%emt 0:00:38]} 36. gxf5 {[%emt 0:00:05]} exf5 {[%emt 0:00:40]} 37. Rxf5 {[%emt 0:00:09]} Rxf5 {[%emt 0:02:23]} 38. Rxf5 {[%emt 0:00:08]} Qg7 {[%emt 0:01:52]} 39. Rf7+ {[%emt 0:00:11]} 1-0

[Event "ISR Youth-Ch Finals 2021 U16"]
[Site "Ramat Hasharon"]
[Date "2021.03.24"]
[Round "6.15"]
[White "Zaromb, Charles Irving"]
[Black "Rozen, Eytan"]
[Result "0-1"]
[ECO "B12"]
[WhiteElo "1886"]
[BlackElo "2399"]
[Annotator "RC"]
[PlyCount "104"]
[EventDate "2021.03.19"]
[EventType "swiss"]
[EventCountry "ISR"]
[SourceTitle "playchess.com"]
[Source "ChessBase"]
[SourceQuality "1"]
[TimeControl "5400+30"]

1. e4 {[%emt 0:00:00]} c6 {[%emt 0:01:02]} 2. d4 {[%emt 0:00:00]} d5 {[%emt 0:00:07]} 3. e5 {[%emt 0:00:19]} c5 {[%emt 0:00:19]} 4. dxc5 {[%emt 0:01:08]} e6 {[%emt 0:00:38]} 5. a3 {[%emt 0:00:36]} Bxc5 {[%emt 0:00:17]} 6. Qg4 {[%emt 0:00:34]} g6 {[%emt 0:01:10]} 7. Nf3 {[%emt 0:04:03]} Nc6 {[%emt 0:07:38]} 8. b4 {[%emt 0:03:05]} h5 {[%emt 0:03:04]} 9. Qf4 {[%emt 0:01:25]} Bf8 {[%emt 0:01:24]} 10. Bb2 {[%emt 0:04:38]} Bh6 {[%emt 0:03:22]} 11. Qg3 {[%emt 0:00:26]} Nge7 {[%emt 0:11:40]} 12. Bd3 {[%emt 0:01:12]} Nf5 {[%emt 0:00:23]} 13. Qh3 {[%emt 0:05:49]} Bg7 {[%emt 0:05:22]} 14. O-O {[%emt 0:11:08]} g5 {[%emt 0:02:45]} 15. Bxf5 {[%emt 0:11:03]} exf5 {[%emt 0:00:01]} 16. Qg3 {[%emt 0:00:37]} g4 {[%emt 0:05:03]} 17. Nd4 {[%emt 0:07:58]} Nxd4 {[%emt 0:12:59]} 18. Bxd4 {[%emt 0:00:16]} Be6 {[%emt 0:01:50]} 19. f4 {[%emt 0:01:32]} b6 {[%emt 0:06:31]} 20. Nc3 {[%emt 0:02:35]} Qd7 {[%emt 0:03:22]} 21. Qd3 {[%emt 0:02:11]} Rc8 {[%emt 0:01:14]} 22. Nb5 {[%emt 0:03:28]} Rc4 {[%emt 0:00:01]} 23. Nc3 {[%emt 0:05:32]} Qc6 {[%emt 0:02:51]} 24. Nd1 {[%emt 0:01:01]} Rxc2 {[%emt 0:00:51]} 25. Ne3 {[%emt 0:00:52]} Rc4 {[%emt 0:00:01]} 26. Nxc4 {[%emt 0:00:33]} dxc4 {[%emt 0:00:10]} 27. Qc3 {[%emt 0:01:38]} h4 {[%emt 0:00:38]} 28. Rac1 {[%emt 0:02:26]} h3 {[%emt 0:00:17]} 29. Rf2 {[%emt 0:01:04]} hxg2 {[%emt 0:01:25]} 30. Rxg2 {[%emt 0:00:46]} Ke7 {[%emt 0:05:16]} 31. b5 {[%emt 0:03:57]} Qxb5 {[%emt 0:01:50]} 32. Qb4+ {[%emt 0:00:08]} Qxb4 {[%emt 0:00:01]} 33. axb4 {[%emt 0:00:08]} Rd8 {[%emt 0:00:04]} 34. Rd2 {[%emt 0:01:10]} Ke8 {[%emt 0:07:04]} 35. Ra1 {[%emt 0:00:58]} f6 {[%emt 0:02:08]} 36. Bc3 {[%emt 0:08:10]} Rxd2 {[%emt 0:02:13]} 37. Bxd2 {[%emt 0:00:06]} fxe5 {[%emt 0:00:04]} 38. Bc3 {[%emt 0:00:26]} Bf8 {[%emt 0:01:33]} 39. fxe5 {[%emt 0:01:59]} Kd7 {[%emt 0:00:27]} 40. b5 {[%emt 0:02:23]} Bd5 {[%emt 0:01:57]} 41. Rxa7+ {[%emt 0:03:33]} Ke6 {[%emt 0:00:01]} 42. Bd4 {[%emt 0:02:12]} Bc5 {[%emt 0:00:08]} 43. Bxc5 {[%emt 0:00:16]} bxc5 {[%emt 0:00:01]} 44. Kf2 {[%emt 0:02:12]} Kxe5 {[%emt 0:07:28]} 45. b6 {[%emt 0:00:19]} c3 {[%emt 0:04:50]} 46. Ke3 {[%emt 0:03:32]} c4 {[%emt 0:00:51]} 47. Re7+ {[%emt 0:01:18]} Kf6 {[%emt 0:00:11]} 48. Rd7 {[%emt 0:02:06]} f4+ {[%emt 0:00:25]} 49. Kd4 {[%emt 0:00:55]} c2 {[%emt 0:00:17]} 50. Kxd5 {[%emt 0:00:11]} c1=Q {[%emt 0:00:06]} 51. b7 {[%emt 0:00:05]} Qb1 {[%emt 0:00:39]} 52. Kxc4 {[%emt 0:00:35]} f3 {[%emt 0:00:06]} 0-1

[Event "ISR Youth-Ch Finals 2021 U16"]
[Site "Ramat Hasharon"]
[Date "2021.03.24"]
[Round "7.12"]
[White "Hoffmann, Yair"]
[Black "Levin, Guy"]
[Result "1/2-1/2"]
[ECO "A21"]
[WhiteElo "2352"]
[BlackElo "2355"]
[Annotator "RC"]
[PlyCount "101"]
[EventDate "2021.03.19"]
[EventType "swiss"]
[EventCountry "ISR"]
[SourceTitle "playchess.com"]
[Source "ChessBase"]
[SourceQuality "1"]
[TimeControl "5400+30"]

1. c4 {[%emt 0:00:00]} e5 {[%emt 0:01:24]} 2. Nc3 {[%emt 0:00:00]} Bb4 {[%emt 0:00:11]} 3. Nd5 {[%emt 0:00:02]} Be7 {[%emt 0:00:10]} 4. d4 {[%emt 0:00:16]} exd4 {[%emt 0:00:11]} 5. Qxd4 {[%emt 0:00:08]} Nf6 {[%emt 0:00:05]} 6. Nxe7 {[%emt 0:00:07]} Qxe7 {[%emt 0:00:08]} 7. Bg5 {[%emt 0:00:16]} Nc6 {[%emt 0:00:08]} 8. Qc3 {[%emt 0:00:08]} Ne5 {[%emt 0:00:08]} 9. Nf3 {[%emt 0:03:00]} d6 {[%emt 0:00:09]} 10. g3 {[%emt 0:00:16]} h6 {[%emt 0:06:50]} 11. Bxf6 {[%emt 0:00:46]} Qxf6 {[%emt 0:00:14]} 12. Nd4 {[%emt 0:00:26]} Nc6 {[%emt 0:08:58]} 13. Nb5 {[%emt 0:00:16]} Qxc3+ {[%emt 0:00:08]} 14. Nxc3 {[%emt 0:00:06]} Be6 {[%emt 0:01:38]} 15. b3 {[%emt 0:00:07]} O-O-O {[%emt 0:02:58]} 16. Bg2 {[%emt 0:00:30]} Ne7 {[%emt 0:04:59]} 17. O-O-O {[%emt 0:03:02]} c6 {[%emt 0:00:27]} 18. h4 {[%emt 0:09:13]} d5 {[%emt 0:10:26]} 19. cxd5 {[%emt 0:00:41]} Nxd5 {[%emt 0:00:19]} 20. Bxd5 {[%emt 0:11:27]} Bxd5 {[%emt 0:00:12]} 21. e4 {[%emt 0:01:10]} Be6 {[%emt 0:00:04]} 22. f3 {[%emt 0:00:09]} f6 {[%emt 0:02:15]} 23. h5 {[%emt 0:00:56]} Rxd1+ {[%emt 0:04:50]} 24. Kxd1 {[%emt 0:00:16]} Rd8+ {[%emt 0:04:05]} 25. Kc2 {[%emt 0:00:27]} Kd7 {[%emt 0:01:31]} 26. Ne2 {[%emt 0:01:47]} Ke7 {[%emt 0:00:37]} 27. g4 {[%emt 0:00:55]} a5 {[%emt 0:01:15]} 28. Nf4 {[%emt 0:00:41]} a4 {[%emt 0:01:53]} 29. Re1 {[%emt 0:00:59]} axb3+ {[%emt 0:04:10]} 30. axb3 {[%emt 0:00:17]} Bf7 {[%emt 0:00:02]} 31. Ra1 {[%emt 0:00:54]} Kd6 {[%emt 0:00:23]} 32. Ne2 {[%emt 0:11:28]} Be6 {[%emt 0:04:04]} 33. Kc3 {[%emt 0:00:59]} c5 {[%emt 0:02:04]} 34. Nf4 {[%emt 0:08:44]} Bf7 {[%emt 0:00:18]} 35. Ne2 {[%emt 0:04:15]} Be6 {[%emt 0:00:12]} 36. Rd1+ {[%emt 0:05:58]} Ke7 {[%emt 0:00:45]} 37. Rxd8 {[%emt 0:00:12]} Kxd8 {[%emt 0:00:01]} 38. b4 {[%emt 0:00:21]} cxb4+ {[%emt 0:00:32]} 39. Kxb4 {[%emt 0:00:06]} Kc7 {[%emt 0:00:40]} 40. Nd4 {[%emt 0:00:09]} Kd6 {[%emt 0:02:04]} 41. Nxe6 {[%emt 0:04:35]} Kxe6 {[%emt 0:00:13]} 42. f4 {[%emt 0:00:04]} Kd6 {[%emt 0:00:36]} 43. Kb5 {[%emt 0:00:03]} Kc7 {[%emt 0:00:15]} 44. Kc5 {[%emt 0:00:33]} Kd7 {[%emt 0:02:41]} 45. Kd5 {[%emt 0:02:26]} Ke7 {[%emt 0:01:00]} 46. Kc4 {[%emt 0:03:06]} Kd6 {[%emt 0:01:24]} 47. Kb5 {[%emt 0:00:15]} Kc7 {[%emt 0:00:18]} 48. Kc5 {[%emt 0:06:40]} Kd7 {[%emt 0:00:23]} 49. Kd5 {[%emt 0:00:32]} Ke7 {[%emt 0:00:10]} 50. Kc4 {[%emt 0:00:33]} Kd6 {[%emt 0:00:27]} 51. Kb5 {[%emt 0:00:02]} 1/2-1/2

[Event "ISR Youth-Ch Finals 2021 U16"]
[Site "Ramat Hasharon"]
[Date "2021.03.26"]
[Round "9.1"]
[White "Yaniv, Yuval"]
[Black "Levin, Guy"]
[Result "1-0"]
[ECO "B31"]
[WhiteElo "2272"]
[BlackElo "2355"]
[Annotator "ChessBase"]
[PlyCount "69"]
[EventDate "2021.03.19"]
[EventType "swiss"]
[EventCountry "ISR"]
[SourceTitle "playchess.com"]
[Source "ChessBase"]
[SourceQuality "1"]
[TimeControl "5400+30"]

1. e4 {[%emt 0:00:00]} c5 {[%emt 0:00:00]} 2. Nf3 {[%emt 0:00:00]} Nc6 {[%emt 0:00:00]} 3. Bb5 {[%emt 0:00:13]} g6 {[%emt 0:00:00]} 4. Bxc6 {[%emt 0:00:49]} bxc6 {[%emt 0:00:00]} 5. O-O {[%emt 0:00:30]} Bg7 {[%emt 0:00:00]} 6. Re1 {[%emt 0:00:04]} Qc7 {[%emt 0:00:01]} 7. e5 {[%emt 0:01:04]} f6 {[%emt 0:00:55]} 8. e6 {[%emt 0:00:18]} d6 {[%emt 0:00:01]} 9. c3 {[%emt 0:17:20]} Nh6 {[%emt 0:04:13]} 10. d4 {[%emt 0:00:33]} cxd4 {[%emt 0:00:23]} 11. cxd4 {[%emt 0:01:08]} O-O {[%emt 0:00:16]} 12. Nc3 {[%emt 0:01:19]} Bb7 {[%emt 0:00:43]} 13. Bxh6 {[%emt 0:05:53]} Bxh6 {[%emt 0:00:56]} 14. h4 {[%emt 0:00:10]} c5 {[%emt 0:02:28]} 15. d5 {[%emt 0:00:09]} Qb6 {[%emt 0:05:56]} 16. Qc2 {[%emt 0:01:41]} f5 {[%emt 0:07:55]} 17. Rad1 {[%emt 0:05:16]} Rab8 {[%emt 0:03:14]} 18. h5 {[%emt 0:03:34]} Qb4 {[%emt 0:01:58]} 19. hxg6 {[%emt 0:01:26]} hxg6 {[%emt 0:00:10]} 20. g3 {[%emt 0:10:57]} Rf6 {[%emt 0:11:51]} 21. Kg2 {[%emt 0:01:58]} g5 {[%emt 0:00:21]} 22. a3 {[%emt 0:12:22]} Qa5 {[%emt 0:04:18]} 23. Rh1 {[%emt 0:02:59]} Rbf8 {[%emt 0:04:22]} 24. Rh5 {[%emt 0:02:04]} Rg6 {[%emt 0:00:02]} 25. Rdh1 {[%emt 0:06:07]} Kg7 {[%emt 0:01:21]} 26. Qd2 {[%emt 0:03:07]} Rff6 {[%emt 0:01:22]} 27. Rxh6 {[%emt 0:00:45]} Rxh6 {[%emt 0:00:01]} 28. Rxh6 {[%emt 0:00:02]} Kxh6 {[%emt 0:00:38]} 29. Qxg5+ {[%emt 0:00:01]} Kh7 {[%emt 0:00:02]} 30. Qh5+ {[%emt 0:00:20]} Kg7 {[%emt 0:00:03]} 31. Ng5 {[%emt 0:00:09]} Rg6 {[%emt 0:00:25]} 32. Qh7+ {[%emt 0:01:13]} Kf6 {[%emt 0:00:01]} 33. Qh8+ {[%emt 0:00:01]} Rg7 {[%emt 0:00:02]} 34. Nh7+ {[%emt 0:01:07]} Kg6 {[%emt 0:00:01]} 35. Nf8+ {[%emt 0:22:51]} 1-0

[Event "ISR Youth-Ch Finals 2021 U16"]
[Site "Ramat Hasharon"]
[Date "2021.03.26"]
[Round "9.4"]
[White "Hoffmann, Yair"]
[Black "Shocron, Alon"]
[Result "1-0"]
[ECO "E06"]
[WhiteElo "2352"]
[BlackElo "1945"]
[Annotator "ChessBase"]
[PlyCount "44"]
[EventDate "2021.03.19"]
[EventType "swiss"]
[EventCountry "ISR"]
[SourceTitle "playchess.com"]
[Source "ChessBase"]
[SourceQuality "1"]
[TimeControl "5400+30"]

1. c4 {[%emt 0:00:00]} Nf6 {[%emt 0:00:56]} 2. g3 {[%emt 0:00:00]} e6 {[%emt 0:01:12]} 3. Bg2 {[%emt 0:00:00]} d5 {[%emt 0:00:46]} 4. Nf3 {[%emt 0:00:07]} Be7 {[%emt 0:04:51]} 5. d4 {[%emt 0:00:11]} O-O {[%emt 0:00:31]} 6. Nc3 {[%emt 0:00:10]} dxc4 {[%emt 0:01:08]} 7. Ne5 {[%emt 0:00:08]} c5 {[%emt 0:04:19]} 8. dxc5 {[%emt 0:00:16]} Bxc5 {[%emt 0:10:10]} 9. Bf4 {[%emt 0:10:42]} Qe7 {[%emt 0:05:37]} 10. O-O {[%emt 0:01:37]} Nc6 {[%emt 0:05:12]} 11. Nxc6 {[%emt 0:03:04]} bxc6 {[%emt 0:00:04]} 12. Qa4 {[%emt 0:00:20]} e5 {[%emt 0:07:02]} 13. Bg5 {[%emt 0:02:16]} Be6 {[%emt 0:03:06]} 14. Qxc6 {[%emt 0:01:34]} Rab8 {[%emt 0:04:46]} 15. Bxf6 {[%emt 0:07:17]} gxf6 {[%emt 0:01:36]} 16. Rab1 {[%emt 0:00:41]} Rfd8 {[%emt 0:08:13]} 17. Rfd1 {[%emt 0:08:05]} Rxd1+ {[%emt 0:14:13]} 18. Rxd1 {[%emt 0:00:05]} Bd4 {[%emt 0:05:03]} 19. Nd5 {[%emt 0:02:10]} Bxd5 {[%emt 0:05:12]} 20. Bxd5 {[%emt 0:01:04]} Rd8 {[%emt 0:05:30]} 21. e3 {[%emt 0:00:52]} Bc5 {[%emt 0:05:50]} 22. Qb5 {[%emt 0:01:04]} Rd7 {[%emt 0:01:13]} 1-0